[Event "Titled Tuesday Blitz February 15 Late 2022"]
[White "Carreto Nieto, Giovanni"]
[Black "Moral Garcia, Serafin"]
[WhiteFideId "5105030"]
[BlackFideId "2201925"]
[WhiteElo "2577"]
[BlackElo "2391"]
[Result "1/2-1/2"]
[Round "10"]
[TimeControl "180+1"]
[Date "2022.02.16"]
[WhiteClock "0:00:28"]
[BlackClock "0:00:22"]

1. e4 {[%clk 0:03:00]}  e5 {[%clk 0:02:59]} 2. Nf3 {[%clk 0:02:58]}  Nc6 {[%clk 0:02:59]} 3. d4 {[%clk 0:02:59]}  exd4 {[%clk 0:02:59]} 4. Nxd4 {[%clk 0:03:00]}  Bc5 {[%clk 0:02:59]} 5. Nxc6 {[%clk 0:03:00]}  Qf6 {[%clk 0:02:59]} 6. Qf3 {[%clk 0:03:00]}  bxc6 {[%clk 0:02:59]} 7. Nd2 {[%clk 0:02:58]}  d6 {[%clk 0:02:57]} 8. Nb3 {[%clk 0:02:58]}  Bb6 {[%clk 0:02:56]} 9. Bd2 {[%clk 0:02:57]}  Qxf3 {[%clk 0:02:50]} 10. gxf3 {[%clk 0:02:58]}  Ne7 {[%clk 0:02:49]} 11. c4 {[%clk 0:02:55]}  Be6 {[%clk 0:02:45]} 12. Bc3 {[%clk 0:02:18]}  O-O {[%clk 0:02:43]} 13. Rg1 {[%clk 0:02:16]}  f6 {[%clk 0:02:42]} 14. a4 {[%clk 0:02:11]}  a5 {[%clk 0:02:37]} 15. Nd4 {[%clk 0:02:08]}  Bd7 {[%clk 0:02:34]} 16. Bd3 {[%clk 0:02:06]}  Ng6 {[%clk 0:02:33]} 17. Bc2 {[%clk 0:01:57]}  Ne5 {[%clk 0:02:15]} 18. Rg3 {[%clk 0:01:54]}  Bxd4 {[%clk 0:02:12]} 19. Bxd4 {[%clk 0:01:53]}  Nxc4 {[%clk 0:02:12]} 20. O-O-O {[%clk 0:01:44]}  Rab8 {[%clk 0:01:56]} 21. f4 {[%clk 0:01:43]}  Kf7 {[%clk 0:01:42]} 22. f5 {[%clk 0:01:36]}  g5 {[%clk 0:01:37]} 23. Bc3 {[%clk 0:01:32]}  Rfe8 {[%clk 0:01:28]} 24. Rh1 {[%clk 0:01:22]}  h5 {[%clk 0:01:12]} 25. h4 {[%clk 0:01:17]}  g4 {[%clk 0:01:12]} 26. f3 {[%clk 0:01:17]}  gxf3 {[%clk 0:01:07]} 27. Rg6 {[%clk 0:01:13]}  Ne5 {[%clk 0:01:04]} 28. Bxe5 {[%clk 0:01:11]}  dxe5 {[%clk 0:01:02]} 29. Rhg1 {[%clk 0:01:06]}  f2 {[%clk 0:00:55]} 30. Rf1 {[%clk 0:01:06]}  Rg8 {[%clk 0:00:54]} 31. Rxg8 {[%clk 0:01:06]}  Kxg8 {[%clk 0:00:53]} 32. Rxf2 {[%clk 0:01:06]}  c5 {[%clk 0:00:48]} 33. Rf3 {[%clk 0:01:05]}  Bc6 {[%clk 0:00:48]} 34. Rc3 {[%clk 0:01:04]}  Rb4 {[%clk 0:00:45]} 35. Rxc5 {[%clk 0:01:03]}  Bxe4 {[%clk 0:00:45]} 36. Bxe4 {[%clk 0:01:01]}  Rxe4 {[%clk 0:00:45]} 37. Rxa5 {[%clk 0:01:02]}  Rxh4 {[%clk 0:00:45]} 38. Ra7 {[%clk 0:01:01]}  Rc4+ {[%clk 0:00:42]} 39. Kd2 {[%clk 0:01:00]}  h4 {[%clk 0:00:42]} 40. b3 {[%clk 0:00:59]}  Rd4+ {[%clk 0:00:38]} 41. Ke3 {[%clk 0:00:56]}  Rb4 {[%clk 0:00:35]} 42. Rxc7 {[%clk 0:00:56]}  Rxb3+ {[%clk 0:00:35]} 43. Ke4 {[%clk 0:00:56]}  h3 {[%clk 0:00:34]} 44. Kd5 {[%clk 0:00:53]}  h2 {[%clk 0:00:29]} 45. Rc1 {[%clk 0:00:53]}  Kf7 {[%clk 0:00:29]} 46. Rh1 {[%clk 0:00:53]}  Rh3 {[%clk 0:00:26]} 47. a5 {[%clk 0:00:53]}  Ra3 {[%clk 0:00:24]} 48. Rxh2 {[%clk 0:00:50]}  Rxa5+ {[%clk 0:00:25]} 49. Kd6 {[%clk 0:00:50]}  Kg7 {[%clk 0:00:22]} 50. Rg2+ {[%clk 0:00:49]}  Kh7 {[%clk 0:00:20]} 51. Ke6 {[%clk 0:00:48]}  Ra6+ {[%clk 0:00:20]} 52. Kf7 {[%clk 0:00:48]}  Kh6 {[%clk 0:00:21]} 53. Rg6+ {[%clk 0:00:25]}  Kh5 {[%clk 0:00:21]} 54. Rxf6 {[%clk 0:00:24]}  Rxf6+ {[%clk 0:00:19]} 55. Kxf6 {[%clk 0:00:25]}  e4 {[%clk 0:00:20]} 56. Kg7 {[%clk 0:00:26]}  e3 {[%clk 0:00:21]} 57. f6 {[%clk 0:00:26]}  e2 {[%clk 0:00:22]} 58. f7 {[%clk 0:00:27]}  e1=Q {[%clk 0:00:22]} 59. f8=Q {[%clk 0:00:28]}  Qe5+ {[%clk 0:00:22]} 60. Kg8 {[%clk 0:00:27]}  Qg5+ {[%clk 0:00:21]} 61. Qg7 {[%clk 0:00:27]}  Qxg7+ {[%clk 0:00:22]} 62. Kxg7 {[%clk 0:00:28]} 1/2-1/2


[Site "https://www.chess.com"]

[Event "Titled Tuesday Blitz February 15 Late 2022"]
[White "Chigaev, Maksim"]
[Black "Bluebaum, Matthias"]
[WhiteFideId "4108116"]
[BlackFideId "24651516"]
[WhiteElo "2502"]
[BlackElo "2550"]
[Result "0-1"]
[Round "10"]
[TimeControl "180+1"]
[Date "2022.02.15"]
[WhiteClock "0:00:02"]
[BlackClock "0:01:00"]

1. d4 {[%clk 0:03:00]}  Nf6 {[%clk 0:03:00]} 2. Nf3 {[%clk 0:03:01]}  d5 {[%clk 0:03:00]} 3. c4 {[%clk 0:03:01]}  e6 {[%clk 0:03:00]} 4. g3 {[%clk 0:03:01]}  Bb4+ {[%clk 0:03:00]} 5. Nbd2 {[%clk 0:03:01]}  dxc4 {[%clk 0:03:00]} 6. Bg2 {[%clk 0:03:02]}  b5 {[%clk 0:03:01]} 7. a3 {[%clk 0:03:02]}  Be7 {[%clk 0:02:59]} 8. a4 {[%clk 0:02:56]}  c6 {[%clk 0:02:53]} 9. Ne5 {[%clk 0:02:52]}  Nd5 {[%clk 0:02:51]} 10. O-O {[%clk 0:02:52]}  Bb7 {[%clk 0:02:45]} 11. e4 {[%clk 0:02:51]}  Nf6 {[%clk 0:02:46]} 12. Ndf3 {[%clk 0:02:49]}  O-O {[%clk 0:02:45]} 13. Qe2 {[%clk 0:02:49]}  Nbd7 {[%clk 0:02:42]} 14. Rd1 {[%clk 0:02:48]}  a6 {[%clk 0:02:39]} 15. g4 {[%clk 0:02:48]}  Nxe5 {[%clk 0:02:34]} 16. Nxe5 {[%clk 0:02:30]}  Nd7 {[%clk 0:02:33]} 17. Nf3 {[%clk 0:02:23]}  Qc7 {[%clk 0:02:29]} 18. g5 {[%clk 0:02:14]}  Rfe8 {[%clk 0:02:24]} 19. Qc2 {[%clk 0:02:06]}  e5 {[%clk 0:02:07]} 20. h4 {[%clk 0:02:01]}  Rad8 {[%clk 0:01:53]} 21. Be3 {[%clk 0:02:00]}  exd4 {[%clk 0:01:45]} 22. Nxd4 {[%clk 0:01:45]}  Ne5 {[%clk 0:01:45]} 23. Qe2 {[%clk 0:01:44]}  Nd3 {[%clk 0:01:39]} 24. Nf5 {[%clk 0:01:44]}  Bf8 {[%clk 0:01:38]} 25. b3 {[%clk 0:01:40]}  Nf4 {[%clk 0:01:31]} 26. Bxf4 {[%clk 0:01:39]}  Qxf4 {[%clk 0:01:32]} 27. Rxd8 {[%clk 0:01:36]}  Rxd8 {[%clk 0:01:33]} 28. bxc4 {[%clk 0:01:17]}  b4 {[%clk 0:01:30]} 29. Rd1 {[%clk 0:01:16]}  Re8 {[%clk 0:01:13]} 30. Qb2 {[%clk 0:00:25]}  Bc8 {[%clk 0:01:11]} 31. Ng3 {[%clk 0:00:14]}  Qxh4 {[%clk 0:01:09]} 32. e5 {[%clk 0:00:14]}  Qxg5 {[%clk 0:01:08]} 33. Bxc6 {[%clk 0:00:13]}  Qxe5 {[%clk 0:01:00]} 34. Qxe5 {[%clk 0:00:11]}  Rxe5 {[%clk 0:01:01]} 35. Rd8 {[%clk 0:00:12]}  Be6 {[%clk 0:01:00]} 36. Rb8 {[%clk 0:00:02]}  g6 {[%clk 0:01:00]} 37. Ne4 {[%clk 0:00:02]}  Kg7 {[%clk 0:01:00]} 0-1


[Site "https://www.chess.com"]

[Event "Titled Tuesday Blitz February 15 Late 2022"]
[White "Cori T., Deysi"]
[Black "Chernomordik, Pavel"]
[WhiteFideId "3801934"]
[BlackFideId "2804530"]
[WhiteElo "2350"]
[BlackElo "2249"]
[Result "1-0"]
[Round "10"]
[TimeControl "180+1"]
[Date "2022.02.16"]
[WhiteClock "0:02:43"]
[BlackClock "0:01:01"]

1. d4 {[%clk 0:03:00]}  g6 {[%clk 0:02:58]} 2. Nf3 {[%clk 0:03:01]}  Bg7 {[%clk 0:02:57]} 3. g3 {[%clk 0:03:01]}  d6 {[%clk 0:02:57]} 4. Bg2 {[%clk 0:03:01]}  Nf6 {[%clk 0:02:57]} 5. O-O {[%clk 0:03:02]}  O-O {[%clk 0:02:58]} 6. b3 {[%clk 0:03:03]}  c6 {[%clk 0:02:57]} 7. Bb2 {[%clk 0:03:03]}  a5 {[%clk 0:02:57]} 8. a4 {[%clk 0:03:02]}  Na6 {[%clk 0:02:56]} 9. Nbd2 {[%clk 0:03:02]}  Bf5 {[%clk 0:02:51]} 10. Re1 {[%clk 0:03:01]}  Qc8 {[%clk 0:02:48]} 11. Nc4 {[%clk 0:02:59]}  Qc7 {[%clk 0:02:42]} 12. Nh4 {[%clk 0:02:55]}  Bg4 {[%clk 0:02:36]} 13. Qd2 {[%clk 0:02:54]}  Nb8 {[%clk 0:02:23]} 14. e4 {[%clk 0:02:52]}  Nbd7 {[%clk 0:02:16]} 15. h3 {[%clk 0:02:51]}  Be6 {[%clk 0:02:15]} 16. d5 {[%clk 0:02:51]}  cxd5 {[%clk 0:01:57]} 17. exd5 {[%clk 0:02:51]}  Bf5 {[%clk 0:01:54]} 18. Nxf5 {[%clk 0:02:51]}  gxf5 {[%clk 0:01:53]} 19. Rxe7 {[%clk 0:02:49]}  Qd8 {[%clk 0:01:46]} 20. Rae1 {[%clk 0:02:48]}  Ne4 {[%clk 0:01:44]} 21. R1xe4 {[%clk 0:02:48]}  fxe4 {[%clk 0:01:34]} 22. Qg5 {[%clk 0:02:46]}  Ne5 {[%clk 0:01:22]} 23. Nxe5 {[%clk 0:02:46]}  Qxe7 {[%clk 0:01:16]} 24. Qxe7 {[%clk 0:02:45]}  dxe5 {[%clk 0:01:15]} 25. Bxe4 {[%clk 0:02:44]}  f5 {[%clk 0:01:07]} 26. Bd3 {[%clk 0:02:44]}  Rfe8 {[%clk 0:01:02]} 27. Qxb7 {[%clk 0:02:44]}  e4 {[%clk 0:01:01]} 28. Qxg7# {[%clk 0:02:43]} 1-0


[Site "https://www.chess.com"]

[Event "Titled Tuesday Blitz February 15 Late 2022"]
[White "Csonka, Balazs"]
[Black "Yoo, Christopher Woojin"]
[WhiteFideId "742910"]
[BlackFideId "30909694"]
[WhiteElo "2404"]
[BlackElo "2105"]
[Result "0-1"]
[Round "10"]
[TimeControl "180+1"]
[Date "2022.02.15"]
[WhiteClock "0:00:03"]
[BlackClock "0:00:03"]

1. e4 {[%clk 0:03:00]}  e5 {[%clk 0:02:59]} 2. Nf3 {[%clk 0:03:00]}  Nc6 {[%clk 0:03:00]} 3. Bb5 {[%clk 0:03:00]}  a6 {[%clk 0:02:59]} 4. Ba4 {[%clk 0:03:00]}  Nf6 {[%clk 0:03:00]} 5. O-O {[%clk 0:03:00]}  Bc5 {[%clk 0:03:00]} 6. c3 {[%clk 0:02:55]}  b5 {[%clk 0:02:59]} 7. Bb3 {[%clk 0:02:51]}  d6 {[%clk 0:02:59]} 8. a4 {[%clk 0:02:50]}  Rb8 {[%clk 0:02:59]} 9. d4 {[%clk 0:02:45]}  Bb6 {[%clk 0:02:58]} 10. axb5 {[%clk 0:02:43]}  axb5 {[%clk 0:02:59]} 11. Na3 {[%clk 0:02:42]}  O-O {[%clk 0:03:00]} 12. Nxb5 {[%clk 0:02:42]}  Bg4 {[%clk 0:02:59]} 13. Bc2 {[%clk 0:02:42]}  Bxf3 {[%clk 0:02:58]} 14. gxf3 {[%clk 0:02:43]}  Nh5 {[%clk 0:02:59]} 15. Kh1 {[%clk 0:01:55]}  Qf6 {[%clk 0:02:52]} 16. Be3 {[%clk 0:01:55]}  Nd8 {[%clk 0:02:25]} 17. Na3 {[%clk 0:01:51]}  Ne6 {[%clk 0:02:13]} 18. d5 {[%clk 0:00:35]}  Nef4 {[%clk 0:02:11]} 19. Nc4 {[%clk 0:00:33]}  Qh4 {[%clk 0:01:10]} 20. Nxb6 {[%clk 0:00:30]}  cxb6 {[%clk 0:01:09]} 21. Rg1 {[%clk 0:00:28]}  Nh3 {[%clk 0:01:08]} 22. Rg2 {[%clk 0:00:20]}  N5f4 {[%clk 0:01:07]} 23. Rg3 {[%clk 0:00:18]}  f5 {[%clk 0:01:02]} 24. exf5 {[%clk 0:00:14]}  Rf6 {[%clk 0:01:01]} 25. Qf1 {[%clk 0:00:10]}  Rh6 {[%clk 0:00:59]} 26. Rxh3 {[%clk 0:00:04]}  Nxh3 {[%clk 0:00:54]} 27. Bxh6 {[%clk 0:00:04]}  Qxh6 {[%clk 0:00:55]} 28. Be4 {[%clk 0:00:02]}  Qh4 {[%clk 0:00:47]} 29. Kg2 {[%clk 0:00:02]}  Rf8 {[%clk 0:00:38]} 30. b4 {[%clk 0:00:02]}  g6 {[%clk 0:00:29]} 31. fxg6 {[%clk 0:00:02]}  hxg6 {[%clk 0:00:30]} 32. Ra2 {[%clk 0:00:01]}  Rf7 {[%clk 0:00:25]} 33. Kh1 {[%clk 0:00:02]}  Nf4 {[%clk 0:00:14]} 34. Qg1 {[%clk 0:00:02]}  Kg7 {[%clk 0:00:14]} 35. Qg3 {[%clk 0:00:02]}  Qf6 {[%clk 0:00:13]} 36. Ra6 {[%clk 0:00:01]}  Rc7 {[%clk 0:00:12]} 37. Rxb6 {[%clk 0:00:01]}  Rxc3 {[%clk 0:00:12]} 38. Rb7+ {[%clk 0:00:02]}  Kf8 {[%clk 0:00:13]} 39. Rb8+ {[%clk 0:00:01]}  Ke7 {[%clk 0:00:13]} 40. Rb7+ {[%clk 0:00:02]}  Kd8 {[%clk 0:00:14]} 41. Qg1 {[%clk 0:00:02]}  Nh3 {[%clk 0:00:08]} 42. Qa1 {[%clk 0:00:02]}  Nxf2+ {[%clk 0:00:09]} 43. Kg2 {[%clk 0:00:03]}  Qg5+ {[%clk 0:00:03]} 44. Kxf2 {[%clk 0:00:03]}  Qd2+ {[%clk 0:00:03]} 45. Kg3 {[%clk 0:00:03]}  Qf4+ {[%clk 0:00:02]} 46. Kf2 {[%clk 0:00:03]}  Qe3+ {[%clk 0:00:02]} 47. Kg3 {[%clk 0:00:03]}  Qg5+ {[%clk 0:00:02]} 48. Kf2 {[%clk 0:00:03]}  Qd2+ {[%clk 0:00:01]} 49. Kg3 {[%clk 0:00:04]}  Qf4+ {[%clk 0:00:02]} 50. Kf2 {[%clk 0:00:03]}  Qxh2+ {[%clk 0:00:02]} 51. Ke1 {[%clk 0:00:02]}  Qg1+ {[%clk 0:00:02]} 52. Kd2 {[%clk 0:00:02]}  Qxa1 {[%clk 0:00:03]} 53. Rb8+ {[%clk 0:00:03]}  Kc7 {[%clk 0:00:03]} 0-1


[Site "https://www.chess.com"]

[Event "Titled Tuesday Blitz February 15 Late 2022"]
[White "Daianu, Cristian-Clement"]
[Black "Reprintsev, Alexander"]
[WhiteFideId "1208926"]
[BlackFideId "14100541"]
[WhiteElo "2159"]
[BlackElo "2126"]
[Result "1-0"]
[Round "10"]
[TimeControl "180+1"]
[Date "2022.02.16"]
[WhiteClock "0:01:35"]
[BlackClock "0:00:01"]

1. d4 {[%clk 0:03:00]}  d5 {[%clk 0:02:47]} 2. Nf3 {[%clk 0:02:54]}  Nc6 {[%clk 0:02:45]} 3. Bf4 {[%clk 0:02:54]}  Bg4 {[%clk 0:02:44]} 4. e3 {[%clk 0:02:54]}  e6 {[%clk 0:02:44]} 5. h3 {[%clk 0:02:54]}  Bf5 {[%clk 0:02:41]} 6. Bd3 {[%clk 0:02:53]}  Bxd3 {[%clk 0:02:28]} 7. Qxd3 {[%clk 0:02:54]}  Bd6 {[%clk 0:02:28]} 8. c3 {[%clk 0:02:52]}  Bxf4 {[%clk 0:02:27]} 9. exf4 {[%clk 0:02:53]}  Qd6 {[%clk 0:02:26]} 10. f5 {[%clk 0:02:53]}  O-O-O {[%clk 0:02:08]} 11. O-O {[%clk 0:02:50]}  e5 {[%clk 0:02:07]} 12. dxe5 {[%clk 0:02:47]}  Nxe5 {[%clk 0:02:08]} 13. Nxe5 {[%clk 0:02:47]}  Qxe5 {[%clk 0:02:08]} 14. Nd2 {[%clk 0:02:48]}  Nh6 {[%clk 0:01:59]} 15. Nf3 {[%clk 0:02:46]}  Qxf5 {[%clk 0:01:58]} 16. Qd4 {[%clk 0:02:46]}  b6 {[%clk 0:01:09]} 17. Rfe1 {[%clk 0:02:36]}  f6 {[%clk 0:01:07]} 18. Re7 {[%clk 0:02:33]}  Rd7 {[%clk 0:01:07]} 19. Rae1 {[%clk 0:02:33]}  Rhd8 {[%clk 0:01:06]} 20. Qa4 {[%clk 0:02:29]}  Kb7 {[%clk 0:00:48]} 21. Nd4 {[%clk 0:02:28]}  Rxe7 {[%clk 0:00:46]} 22. Rxe7 {[%clk 0:02:28]}  Qc8 {[%clk 0:00:21]} 23. Nb5 {[%clk 0:02:12]}  a5 {[%clk 0:00:16]} 24. Rxc7+ {[%clk 0:02:10]}  Qxc7 {[%clk 0:00:16]} 25. Nxc7 {[%clk 0:02:11]}  Kxc7 {[%clk 0:00:16]} 26. b4 {[%clk 0:02:04]}  axb4 {[%clk 0:00:14]} 27. Qa7+ {[%clk 0:02:01]}  Kc6 {[%clk 0:00:11]} 28. Qxg7 {[%clk 0:02:01]}  Ng8 {[%clk 0:00:09]} 29. cxb4 {[%clk 0:01:59]}  Kb5 {[%clk 0:00:10]} 30. Qxh7 {[%clk 0:01:52]}  Kxb4 {[%clk 0:00:09]} 31. Qc7 {[%clk 0:01:43]}  Re8 {[%clk 0:00:03]} 32. Qd6+ {[%clk 0:01:43]}  Ka5 {[%clk 0:00:01]} 33. Qxd5+ {[%clk 0:01:43]}  Ka6 {[%clk 0:00:01]} 34. a4 {[%clk 0:01:35]} 1-0


[Site "https://www.chess.com"]

[Event "Titled Tuesday Blitz February 15 Late 2022"]
[White "Deac, Bogdan-Daniel"]
[Black "Mirzoev, Azer"]
[WhiteFideId "1226380"]
[BlackFideId "13400304"]
[WhiteElo "2646"]
[BlackElo "2525"]
[Result "1-0"]
[Round "10"]
[TimeControl "180+1"]
[Date "2022.02.15"]
[WhiteClock "0:00:37"]
[BlackClock "0:00:06"]

1. e4 {[%clk 0:03:00]}  e5 {[%clk 0:02:58]} 2. Nf3 {[%clk 0:03:01]}  Nc6 {[%clk 0:02:59]} 3. d4 {[%clk 0:03:01]}  exd4 {[%clk 0:02:58]} 4. Nxd4 {[%clk 0:03:02]}  Bc5 {[%clk 0:02:54]} 5. Nb3 {[%clk 0:03:01]}  Bb6 {[%clk 0:02:54]} 6. Qe2 {[%clk 0:03:01]}  d6 {[%clk 0:02:52]} 7. Be3 {[%clk 0:02:59]}  Nge7 {[%clk 0:02:50]} 8. Nc3 {[%clk 0:02:58]}  O-O {[%clk 0:02:51]} 9. O-O-O {[%clk 0:02:58]}  f5 {[%clk 0:02:51]} 10. f4 {[%clk 0:02:57]}  fxe4 {[%clk 0:02:50]} 11. Bxb6 {[%clk 0:02:40]}  axb6 {[%clk 0:02:49]} 12. Qxe4 {[%clk 0:02:41]}  Bf5 {[%clk 0:02:48]} 13. Qf3 {[%clk 0:02:41]}  Qd7 {[%clk 0:02:30]} 14. h3 {[%clk 0:02:40]}  Be6 {[%clk 0:02:00]} 15. g4 {[%clk 0:02:35]}  Ne5 {[%clk 0:01:45]} 16. Qg3 {[%clk 0:02:22]}  Nc4 {[%clk 0:01:39]} 17. Bd3 {[%clk 0:02:18]}  b5 {[%clk 0:01:33]} 18. a3 {[%clk 0:02:10]}  c6 {[%clk 0:01:31]} 19. Rhe1 {[%clk 0:02:07]}  Nd5 {[%clk 0:01:24]} 20. Bxc4 {[%clk 0:01:27]}  bxc4 {[%clk 0:01:23]} 21. Nd4 {[%clk 0:01:27]}  Nxc3 {[%clk 0:01:10]} 22. Qxc3 {[%clk 0:01:26]}  Bd5 {[%clk 0:00:43]} 23. f5 {[%clk 0:01:24]}  Rae8 {[%clk 0:00:42]} 24. Ne2 {[%clk 0:01:19]}  Re5 {[%clk 0:00:29]} 25. Nf4 {[%clk 0:01:16]}  Rfe8 {[%clk 0:00:29]} 26. Rxe5 {[%clk 0:01:11]}  Rxe5 {[%clk 0:00:30]} 27. Re1 {[%clk 0:01:10]}  Qe7 {[%clk 0:00:25]} 28. Rxe5 {[%clk 0:01:09]}  dxe5 {[%clk 0:00:25]} 29. Qe3 {[%clk 0:01:06]}  Qd6 {[%clk 0:00:21]} 30. Ne2 {[%clk 0:01:02]}  h6 {[%clk 0:00:20]} 31. a4 {[%clk 0:01:02]}  Qc7 {[%clk 0:00:15]} 32. Nc3 {[%clk 0:01:00]}  Qd6 {[%clk 0:00:09]} 33. h4 {[%clk 0:01:00]}  Qe7 {[%clk 0:00:09]} 34. g5 {[%clk 0:00:59]}  hxg5 {[%clk 0:00:09]} 35. hxg5 {[%clk 0:01:00]}  Qf7 {[%clk 0:00:09]} 36. Qxe5 {[%clk 0:00:59]}  Qd7 {[%clk 0:00:07]} 37. g6 {[%clk 0:00:56]}  Kf8 {[%clk 0:00:07]} 38. f6 {[%clk 0:00:51]}  gxf6 {[%clk 0:00:06]} 39. Qxf6+ {[%clk 0:00:51]}  Kg8 {[%clk 0:00:07]} 40. Kb1 {[%clk 0:00:51]}  Qe6 {[%clk 0:00:07]} 41. Nxd5 {[%clk 0:00:37]}  Qxd5 {[%clk 0:00:06]} 42. Qe7 {[%clk 0:00:37]}  b5 {[%clk 0:00:06]} 43. Qh7+ {[%clk 0:00:37]} 1-0


[Site "https://www.chess.com"]

[Event "Titled Tuesday Blitz February 15 Late 2022"]
[White "Foisor, Sabina-Francesca"]
[Black "Hoffmann, Asa"]
[WhiteFideId "1212915"]
[BlackFideId "2001470"]
[WhiteElo "2243"]
[BlackElo "2117"]
[Result "1-0"]
[Round "10"]
[TimeControl "180+1"]
[Date "2022.02.16"]
[WhiteClock "0:00:27"]
[BlackClock "0:00:01"]

1. d4 {[%clk 0:03:00]}  Nf6 {[%clk 0:02:35]} 2. c4 {[%clk 0:03:00]}  c5 {[%clk 0:02:32]} 3. d5 {[%clk 0:03:00]}  e5 {[%clk 0:02:31]} 4. Nc3 {[%clk 0:02:59]}  d6 {[%clk 0:02:26]} 5. e4 {[%clk 0:02:58]}  Be7 {[%clk 0:02:26]} 6. Nf3 {[%clk 0:02:58]}  Nbd7 {[%clk 0:02:25]} 7. Be2 {[%clk 0:02:58]}  Nf8 {[%clk 0:02:25]} 8. O-O {[%clk 0:02:56]}  Ng6 {[%clk 0:02:24]} 9. g3 {[%clk 0:02:54]}  O-O {[%clk 0:02:23]} 10. a3 {[%clk 0:02:55]}  Bh3 {[%clk 0:02:07]} 11. Re1 {[%clk 0:02:54]}  Ne8 {[%clk 0:02:06]} 12. Bf1 {[%clk 0:02:44]}  Bg4 {[%clk 0:02:02]} 13. h3 {[%clk 0:02:38]}  Bxf3 {[%clk 0:01:58]} 14. Qxf3 {[%clk 0:02:39]}  Bg5 {[%clk 0:01:58]} 15. h4 {[%clk 0:02:31]}  Bxc1 {[%clk 0:01:56]} 16. Raxc1 {[%clk 0:02:32]}  a6 {[%clk 0:01:53]} 17. b4 {[%clk 0:02:26]}  b6 {[%clk 0:01:51]} 18. h5 {[%clk 0:02:17]}  Ne7 {[%clk 0:01:49]} 19. h6 {[%clk 0:02:17]}  g6 {[%clk 0:01:47]} 20. Rb1 {[%clk 0:02:10]}  f5 {[%clk 0:01:45]} 21. Bh3 {[%clk 0:02:02]}  Qd7 {[%clk 0:01:39]} 22. bxc5 {[%clk 0:01:39]}  bxc5 {[%clk 0:01:38]} 23. Qg2 {[%clk 0:01:39]}  Nf6 {[%clk 0:01:21]} 24. Rb6 {[%clk 0:01:16]}  Rfb8 {[%clk 0:01:09]} 25. Reb1 {[%clk 0:01:16]}  Rxb6 {[%clk 0:01:08]} 26. Rxb6 {[%clk 0:01:16]}  Qc7 {[%clk 0:01:05]} 27. Rb1 {[%clk 0:01:10]}  Rb8 {[%clk 0:01:05]} 28. exf5 {[%clk 0:01:10]}  Rxb1+ {[%clk 0:00:56]} 29. Nxb1 {[%clk 0:01:11]}  gxf5 {[%clk 0:00:55]} 30. Qf3 {[%clk 0:01:05]}  Qd7 {[%clk 0:00:42]} 31. Nc3 {[%clk 0:01:01]}  e4 {[%clk 0:00:38]} 32. Qf4 {[%clk 0:00:57]}  Kf7 {[%clk 0:00:28]} 33. Qg5 {[%clk 0:00:48]}  Ne8 {[%clk 0:00:18]} 34. Nxe4 {[%clk 0:00:44]}  Qa4 {[%clk 0:00:08]} 35. Bxf5 {[%clk 0:00:37]}  Qd1+ {[%clk 0:00:01]} 36. Kg2 {[%clk 0:00:34]}  Nxf5 {[%clk 0:00:01]} 37. Qxf5+ {[%clk 0:00:34]}  Ke7 {[%clk 0:00:01]} 38. Qe6+ {[%clk 0:00:27]}  Kd8 {[%clk 0:00:01]} 39. Nxd6 {[%clk 0:00:27]} 1-0


[Site "https://www.chess.com"]